[Event "Titled Tuesday Blitz December 06 Late 2022"]
[White "Barria Zuniga, Daniel"]
[Black "Toncheva, Nadya"]
[WhiteFideId "3400816"]
[BlackFideId "2924056"]
[WhiteElo "2649"]
[BlackElo "2506"]
[Result "1-0"]
[Round "08"]
[TimeControl "180+1"]
[Date "2022.12.07"]
[WhiteClock "0:01:28"]
[BlackClock "0:00:09"]

1. d4 {[%clk 0:03:00]}  d5 {[%clk 0:02:57]} 2. c4 {[%clk 0:03:00]}  dxc4 {[%clk 0:02:58]} 3. Nf3 {[%clk 0:03:00]}  Nf6 {[%clk 0:02:59]} 4. e3 {[%clk 0:03:00]}  Bg4 {[%clk 0:02:59]} 5. Bxc4 {[%clk 0:02:59]}  e6 {[%clk 0:03:00]} 6. h3 {[%clk 0:02:59]}  Bh5 {[%clk 0:02:58]} 7. Qb3 {[%clk 0:02:58]}  Bxf3 {[%clk 0:02:57]} 8. gxf3 {[%clk 0:02:58]}  Qc8 {[%clk 0:02:58]} 9. Nc3 {[%clk 0:02:54]}  Nbd7 {[%clk 0:02:55]} 10. e4 {[%clk 0:02:53]}  c6 {[%clk 0:02:40]} 11. Be3 {[%clk 0:02:49]}  Be7 {[%clk 0:02:26]} 12. h4 {[%clk 0:02:46]}  Qc7 {[%clk 0:02:21]} 13. h5 {[%clk 0:02:45]}  Nb6 {[%clk 0:01:46]} 14. Be2 {[%clk 0:02:43]}  O-O-O {[%clk 0:01:40]} 15. a4 {[%clk 0:02:39]}  Nbd7 {[%clk 0:01:19]} 16. a5 {[%clk 0:02:23]}  Nb8 {[%clk 0:01:17]} 17. O-O {[%clk 0:02:14]}  Nxh5 {[%clk 0:01:11]} 18. Rfc1 {[%clk 0:02:15]}  Nf4 {[%clk 0:01:06]} 19. Bf1 {[%clk 0:02:04]}  a6 {[%clk 0:00:50]} 20. d5 {[%clk 0:01:58]}  exd5 {[%clk 0:00:47]} 21. exd5 {[%clk 0:01:54]}  Nxd5 {[%clk 0:00:34]} 22. Bh3+ {[%clk 0:01:53]}  Nd7 {[%clk 0:00:24]} 23. Nxd5 {[%clk 0:01:53]}  Qe5 {[%clk 0:00:24]} 24. Nb6+ {[%clk 0:01:40]}  Kc7 {[%clk 0:00:21]} 25. Nxd7 {[%clk 0:01:40]}  Rxd7 {[%clk 0:00:20]} 26. Bxd7 {[%clk 0:01:39]}  Bg5 {[%clk 0:00:15]} 27. Bh3 {[%clk 0:01:33]}  Bxe3 {[%clk 0:00:14]} 28. Qxe3 {[%clk 0:01:32]}  Qh5 {[%clk 0:00:11]} 29. Qf4+ {[%clk 0:01:28]}  Kd8 {[%clk 0:00:09]} 1-0


[Site "https://www.chess.com"]

[Event "Titled Tuesday Blitz December 06 Late 2022"]
[White "Bas Mas, Jose Joaquin"]
[Black "Torres Dominguez, David"]
[WhiteFideId "22219064"]
[BlackFideId "2220857"]
[WhiteElo "2233"]
[BlackElo "2037"]
[Result "1-0"]
[Round "08"]
[TimeControl "180+1"]
[Date "2022.12.07"]
[WhiteClock "0:01:01"]
[BlackClock "0:00:03"]

1. e4 {[%clk 0:03:00]}  Nc6 {[%clk 0:02:56]} 2. Nc3 {[%clk 0:03:00]}  e5 {[%clk 0:02:56]} 3. Nf3 {[%clk 0:03:00]}  Nf6 {[%clk 0:02:57]} 4. Bb5 {[%clk 0:03:00]}  Nd4 {[%clk 0:02:56]} 5. O-O {[%clk 0:02:57]}  Nxf3+ {[%clk 0:02:54]} 6. Qxf3 {[%clk 0:02:57]}  c6 {[%clk 0:02:54]} 7. Bc4 {[%clk 0:02:54]}  Be7 {[%clk 0:02:53]} 8. h3 {[%clk 0:02:54]}  O-O {[%clk 0:02:53]} 9. d3 {[%clk 0:02:54]}  d6 {[%clk 0:02:52]} 10. Bg5 {[%clk 0:02:53]}  Be6 {[%clk 0:02:52]} 11. Bb3 {[%clk 0:02:52]}  a6 {[%clk 0:02:51]} 12. Rad1 {[%clk 0:02:50]}  Nd7 {[%clk 0:02:50]} 13. Bxe7 {[%clk 0:02:47]}  Qxe7 {[%clk 0:02:50]} 14. Qe3 {[%clk 0:02:47]}  Nc5 {[%clk 0:02:46]} 15. Ne2 {[%clk 0:02:45]}  Nxb3 {[%clk 0:02:45]} 16. axb3 {[%clk 0:02:46]}  f5 {[%clk 0:02:45]} 17. exf5 {[%clk 0:02:40]}  Bxf5 {[%clk 0:02:30]} 18. Ng3 {[%clk 0:02:38]}  Bg6 {[%clk 0:02:29]} 19. f4 {[%clk 0:02:34]}  Rae8 {[%clk 0:02:18]} 20. f5 {[%clk 0:02:34]}  Bf7 {[%clk 0:02:16]} 21. Rde1 {[%clk 0:02:33]}  Qh4 {[%clk 0:02:08]} 22. f6 {[%clk 0:02:18]}  g6 {[%clk 0:01:51]} 23. Ne4 {[%clk 0:02:09]}  d5 {[%clk 0:01:28]} 24. Nc5 {[%clk 0:01:52]}  Be6 {[%clk 0:01:14]} 25. Qxe5 {[%clk 0:01:46]}  Bf7 {[%clk 0:00:51]} 26. Qc3 {[%clk 0:01:34]}  Rxe1 {[%clk 0:00:41]} 27. Qxe1 {[%clk 0:01:29]}  Qd4+ {[%clk 0:00:23]} 28. Qf2 {[%clk 0:01:29]}  Qxf2+ {[%clk 0:00:20]} 29. Kxf2 {[%clk 0:01:26]}  Be8 {[%clk 0:00:19]} 30. Ke3 {[%clk 0:01:24]}  b6 {[%clk 0:00:18]} 31. Ne6 {[%clk 0:01:22]}  Rf7 {[%clk 0:00:17]} 32. Kd4 {[%clk 0:01:21]}  Bd7 {[%clk 0:00:15]} 33. Ng5 {[%clk 0:01:17]}  Rf8 {[%clk 0:00:15]} 34. Ke5 {[%clk 0:01:16]}  h6 {[%clk 0:00:13]} 35. f7+ {[%clk 0:01:10]}  Kg7 {[%clk 0:00:13]} 36. Ne6+ {[%clk 0:01:09]}  Bxe6 {[%clk 0:00:11]} 37. Kxe6 {[%clk 0:01:10]}  d4 {[%clk 0:00:11]} 38. b4 {[%clk 0:01:06]}  h5 {[%clk 0:00:09]} 39. h4 {[%clk 0:01:06]}  c5 {[%clk 0:00:08]} 40. bxc5 {[%clk 0:01:05]}  bxc5 {[%clk 0:00:09]} 41. b3 {[%clk 0:01:05]}  Rc8 {[%clk 0:00:07]} 42. Kd7 {[%clk 0:01:01]}  Rf8 {[%clk 0:00:07]} 43. Ke7 {[%clk 0:01:01]}  a5 {[%clk 0:00:03]} 44. g3 {[%clk 0:01:01]} 1-0


[Site "https://www.chess.com"]

[Event "Titled Tuesday Blitz December 06 Late 2022"]
[White "Battlecruiser_Operational"]
[Black "Burke, Paul"]
[BlackFideId "2605767"]
[WhiteElo "2288"]
[BlackElo "1888"]
[Result "1-0"]
[Round "08"]
[TimeControl "180+1"]
[Date "2022.12.07"]
[WhiteClock "0:00:57"]
[BlackClock "0:00:37"]

1. d4 {[%clk 0:03:00]}  a6 {[%clk 0:02:59]} 2. c4 {[%clk 0:02:58]}  d6 {[%clk 0:02:59]} 3. Nc3 {[%clk 0:02:58]}  g6 {[%clk 0:02:59]} 4. Nf3 {[%clk 0:02:58]}  Nd7 {[%clk 0:02:59]} 5. e4 {[%clk 0:02:58]}  h6 {[%clk 0:02:59]} 6. Be2 {[%clk 0:02:58]}  Bg7 {[%clk 0:02:59]} 7. O-O {[%clk 0:02:57]}  e6 {[%clk 0:02:59]} 8. Be3 {[%clk 0:02:57]}  Ne7 {[%clk 0:02:59]} 9. Qd2 {[%clk 0:02:51]}  b6 {[%clk 0:02:59]} 10. b4 {[%clk 0:02:48]}  Bb7 {[%clk 0:02:58]} 11. a4 {[%clk 0:02:46]}  Nf6 {[%clk 0:02:57]} 12. d5 {[%clk 0:02:34]}  e5 {[%clk 0:02:56]} 13. Ne1 {[%clk 0:02:31]}  Nxe4 {[%clk 0:02:33]} 14. Nxe4 {[%clk 0:02:29]}  f5 {[%clk 0:02:33]} 15. Bd3 {[%clk 0:02:16]}  fxe4 {[%clk 0:02:13]} 16. Bxe4 {[%clk 0:02:14]}  Nf5 {[%clk 0:02:13]} 17. Nd3 {[%clk 0:01:55]}  Qh4 {[%clk 0:01:38]} 18. f3 {[%clk 0:01:45]}  O-O-O {[%clk 0:01:13]} 19. Bf2 {[%clk 0:01:41]}  Qe7 {[%clk 0:01:08]} 20. a5 {[%clk 0:01:40]}  Nd4 {[%clk 0:01:05]} 21. Bxd4 {[%clk 0:01:29]}  exd4 {[%clk 0:01:05]} 22. b5 {[%clk 0:01:19]}  axb5 {[%clk 0:00:54]} 23. cxb5 {[%clk 0:01:19]}  Qf6 {[%clk 0:00:46]} 24. axb6 {[%clk 0:01:14]}  cxb6 {[%clk 0:00:45]} 25. Rfc1+ {[%clk 0:01:13]}  Kd7 {[%clk 0:00:43]} 26. Ra7 {[%clk 0:01:10]}  Rb8 {[%clk 0:00:43]} 27. Qc2 {[%clk 0:00:59]}  Qd8 {[%clk 0:00:37]} 28. Qc6+ {[%clk 0:00:57]} 1-0


[Site "https://www.chess.com"]

[Event "Titled Tuesday Blitz December 06 Late 2022"]
[White "Bok, Benjamin"]
[Black "Lewicki, Miroslaw"]
[WhiteFideId "1017063"]
[BlackFideId "1113380"]
[WhiteElo "2658"]
[BlackElo "2191"]
[Result "1-0"]
[Round "08"]
[TimeControl "180+1"]
[Date "2022.12.06"]
[WhiteClock "0:00:46"]
[BlackClock "0:00:11"]

1. d4 {[%clk 0:03:00]}  b6 {[%clk 0:02:55]} 2. e4 {[%clk 0:03:00]}  Bb7 {[%clk 0:02:56]} 3. Bd3 {[%clk 0:03:00]}  Nf6 {[%clk 0:02:54]} 4. Qe2 {[%clk 0:03:00]}  g6 {[%clk 0:02:48]} 5. Nf3 {[%clk 0:02:59]}  Bg7 {[%clk 0:02:47]} 6. e5 {[%clk 0:02:58]}  Nd5 {[%clk 0:02:47]} 7. Be4 {[%clk 0:02:52]}  Qc8 {[%clk 0:02:42]} 8. O-O {[%clk 0:02:42]}  O-O {[%clk 0:02:32]} 9. c4 {[%clk 0:02:39]}  Nb4 {[%clk 0:02:31]} 10. Nc3 {[%clk 0:02:31]}  d6 {[%clk 0:02:19]} 11. Bg5 {[%clk 0:02:15]}  N8c6 {[%clk 0:01:43]} 12. a3 {[%clk 0:02:10]}  Na6 {[%clk 0:01:43]} 13. b4 {[%clk 0:01:46]}  Nab8 {[%clk 0:01:23]} 14. b5 {[%clk 0:01:34]}  Na5 {[%clk 0:01:18]} 15. Bxe7 {[%clk 0:00:55]}  Re8 {[%clk 0:01:16]} 16. Bxb7 {[%clk 0:00:53]}  Qxb7 {[%clk 0:00:59]} 17. Nd5 {[%clk 0:00:52]}  Nd7 {[%clk 0:00:43]} 18. e6 {[%clk 0:00:49]}  Nf8 {[%clk 0:00:33]} 19. exf7+ {[%clk 0:00:47]}  Kxf7 {[%clk 0:00:34]} 20. Ng5+ {[%clk 0:00:47]}  Kg8 {[%clk 0:00:34]} 21. Qf3 {[%clk 0:00:47]}  c6 {[%clk 0:00:17]} 22. Qf7+ {[%clk 0:00:47]}  Kh8 {[%clk 0:00:17]} 23. Nf6 {[%clk 0:00:48]}  Ne6 {[%clk 0:00:11]} 24. Qg8+ {[%clk 0:00:46]}  Rxg8 {[%clk 0:00:11]} 25. Nf7# {[%clk 0:00:46]} 1-0


[Site "https://www.chess.com"]

[Event "Titled Tuesday Blitz December 06 Late 2022"]
[White "Bryant, Todd"]
[Black "Marcolino, Daniel Mattos"]
[WhiteFideId "2031299"]
[BlackFideId "2106841"]
[WhiteElo "2322"]
[BlackElo "2163"]
[Result "1-0"]
[Round "08"]
[TimeControl "180+1"]
[Date "2022.12.07"]
[WhiteClock "0:00:04"]
[BlackClock "0:00:01"]

1. e4 {[%clk 0:03:00]}  c6 {[%clk 0:02:56]} 2. d4 {[%clk 0:03:00]}  d5 {[%clk 0:02:57]} 3. f3 {[%clk 0:03:00]}  Qb6 {[%clk 0:02:55]} 4. Nc3 {[%clk 0:02:59]}  e6 {[%clk 0:02:54]} 5. e5 {[%clk 0:02:45]}  c5 {[%clk 0:02:45]} 6. Nge2 {[%clk 0:02:36]}  Nc6 {[%clk 0:02:38]} 7. Na4 {[%clk 0:02:23]}  Qa5+ {[%clk 0:02:35]} 8. c3 {[%clk 0:02:24]}  cxd4 {[%clk 0:02:35]} 9. b4 {[%clk 0:02:24]}  Qc7 {[%clk 0:02:23]} 10. a3 {[%clk 0:01:22]}  dxc3 {[%clk 0:02:11]} 11. Naxc3 {[%clk 0:01:04]}  Nxe5 {[%clk 0:02:10]} 12. Bf4 {[%clk 0:01:01]}  f6 {[%clk 0:01:58]} 13. Rc1 {[%clk 0:00:54]}  Qf7 {[%clk 0:01:40]} 14. Nb5 {[%clk 0:00:45]}  Rb8 {[%clk 0:00:41]} 15. Qd4 {[%clk 0:00:35]}  b6 {[%clk 0:00:26]} 16. Bxe5 {[%clk 0:00:30]}  fxe5 {[%clk 0:00:27]} 17. Qxe5 {[%clk 0:00:31]}  Qb7 {[%clk 0:00:22]} 18. Rc7 {[%clk 0:00:28]}  Qa6 {[%clk 0:00:20]} 19. Ned4 {[%clk 0:00:24]}  Bxb4+ {[%clk 0:00:15]} 20. axb4 {[%clk 0:00:23]}  Qa1+ {[%clk 0:00:15]} 21. Kf2 {[%clk 0:00:23]}  Qb2+ {[%clk 0:00:13]} 22. Kg3 {[%clk 0:00:22]}  Nf6 {[%clk 0:00:13]} 23. Nd6+ {[%clk 0:00:16]}  Kf8 {[%clk 0:00:13]} 24. Rf7+ {[%clk 0:00:15]}  Kg8 {[%clk 0:00:13]} 25. Rxf6 {[%clk 0:00:10]}  gxf6 {[%clk 0:00:09]} 26. Qxf6 {[%clk 0:00:11]}  Rb7 {[%clk 0:00:08]} 27. Qd8+ {[%clk 0:00:10]}  Kg7 {[%clk 0:00:08]} 28. Qg5+ {[%clk 0:00:09]}  Kf8 {[%clk 0:00:07]} 29. Qf6+ {[%clk 0:00:09]}  Kg8 {[%clk 0:00:06]} 30. h4 {[%clk 0:00:07]}  Rg7+ {[%clk 0:00:01]} 31. Kh3 {[%clk 0:00:04]}  Rd7 {[%clk 0:00:01]} 32. h5 {[%clk 0:00:04]} 1-0


[Site "https://www.chess.com"]

[Event "Titled Tuesday Blitz December 06 Late 2022"]
[White "Chigaev, Maksim"]
[Black "Martinez Alcantara, Jose Eduardo"]
[WhiteFideId "4108116"]
[BlackFideId "3805662"]
[WhiteElo "2542"]
[BlackElo "2707"]
[Result "1-0"]
[Round "08"]
[TimeControl "180+1"]
[Date "2022.12.06"]
[WhiteClock "0:00:43"]
[BlackClock "0:00:10"]

1. Nf3 {[%clk 0:03:00]}  c5 {[%clk 0:02:59]} 2. c4 {[%clk 0:02:59]}  Nc6 {[%clk 0:02:59]} 3. Nc3 {[%clk 0:03:00]}  g6 {[%clk 0:02:57]} 4. e3 {[%clk 0:03:00]}  Bg7 {[%clk 0:02:57]} 5. d4 {[%clk 0:03:00]}  d6 {[%clk 0:02:58]} 6. d5 {[%clk 0:03:00]}  Nb4 {[%clk 0:02:55]} 7. a3 {[%clk 0:02:59]}  Na6 {[%clk 0:02:53]} 8. e4 {[%clk 0:02:58]}  Nf6 {[%clk 0:02:52]} 9. h3 {[%clk 0:02:58]}  O-O {[%clk 0:02:51]} 10. Bd3 {[%clk 0:02:59]}  e6 {[%clk 0:02:46]} 11. O-O {[%clk 0:02:58]}  Nc7 {[%clk 0:02:46]} 12. Bg5 {[%clk 0:02:55]}  h6 {[%clk 0:02:44]} 13. Be3 {[%clk 0:02:55]}  e5 {[%clk 0:02:42]} 14. b4 {[%clk 0:02:54]}  b6 {[%clk 0:02:42]} 15. Rb1 {[%clk 0:02:55]}  Nfe8 {[%clk 0:02:30]} 16. a4 {[%clk 0:02:42]}  cxb4 {[%clk 0:02:24]} 17. Rxb4 {[%clk 0:02:42]}  Na6 {[%clk 0:02:24]} 18. Rb1 {[%clk 0:02:42]}  Nc5 {[%clk 0:02:25]} 19. a5 {[%clk 0:02:42]}  Bd7 {[%clk 0:02:22]} 20. Bc2 {[%clk 0:02:41]}  Rb8 {[%clk 0:02:19]} 21. axb6 {[%clk 0:02:32]}  axb6 {[%clk 0:02:20]} 22. Nd2 {[%clk 0:02:07]}  f5 {[%clk 0:02:12]} 23. Bxc5 {[%clk 0:02:00]}  dxc5 {[%clk 0:02:05]} 24. Ba4 {[%clk 0:01:58]}  Nd6 {[%clk 0:01:57]} 25. Bxd7 {[%clk 0:01:58]}  Qxd7 {[%clk 0:01:56]} 26. Qa4 {[%clk 0:01:44]}  Qd8 {[%clk 0:01:43]} 27. Nb5 {[%clk 0:01:35]}  Qd7 {[%clk 0:01:28]} 28. Qc2 {[%clk 0:01:35]}  Nf7 {[%clk 0:01:23]} 29. Ra1 {[%clk 0:01:35]}  Rb7 {[%clk 0:01:21]} 30. Ra6 {[%clk 0:01:35]}  Ng5 {[%clk 0:01:08]} 31. Rfa1 {[%clk 0:01:33]}  fxe4 {[%clk 0:00:50]} 32. Nxe4 {[%clk 0:01:26]}  Nxe4 {[%clk 0:00:49]} 33. Qxe4 {[%clk 0:01:27]}  Rf4 {[%clk 0:00:49]} 34. Qxg6 {[%clk 0:01:25]}  Rf8 {[%clk 0:00:26]} 35. Ra8 {[%clk 0:01:01]}  Qe7 {[%clk 0:00:19]} 36. d6 {[%clk 0:00:54]}  Qf6 {[%clk 0:00:17]} 37. Rxf8+ {[%clk 0:00:46]}  Qxf8 {[%clk 0:00:17]} 38. Qe4 {[%clk 0:00:45]}  Rd7 {[%clk 0:00:12]} 39. Ra8 {[%clk 0:00:45]}  Rd8 {[%clk 0:00:11]} 40. Qd5+ {[%clk 0:00:43]}  Kh7 {[%clk 0:00:10]} 41. Rxd8 {[%clk 0:00:43]}  Qxd8 {[%clk 0:00:10]} 42. d7 {[%clk 0:00:43]} 1-0


[Site "https://www.chess.com"]

[Event "Titled Tuesday Blitz December 06 Late 2022"]
[White "D`Arruda, Ricardo D."]
[Black "Papp, Levente"]
[WhiteFideId "100692"]
[BlackFideId "751243"]
[WhiteElo "2468"]
[BlackElo "2380"]
[Result "0-1"]
[Round "08"]
[TimeControl "180+1"]
[Date "2022.12.07"]
[WhiteClock "0:00:01"]
[BlackClock "0:00:05"]

1. g3 {[%clk 0:02:21]}  e5 {[%clk 0:02:58]} 2. Bg2 {[%clk 0:02:22]}  d5 {[%clk 0:02:57]} 3. d3 {[%clk 0:02:22]}  Nc6 {[%clk 0:02:57]} 4. Nc3 {[%clk 0:02:22]}  Be6 {[%clk 0:02:50]} 5. e4 {[%clk 0:02:22]}  Bb4 {[%clk 0:02:40]} 6. exd5 {[%clk 0:02:18]}  Bxd5 {[%clk 0:02:39]} 7. Nf3 {[%clk 0:02:18]}  e4 {[%clk 0:02:14]} 8. dxe4 {[%clk 0:02:04]}  Bc4 {[%clk 0:01:59]} 9. Qxd8+ {[%clk 0:01:56]}  Rxd8 {[%clk 0:01:59]} 10. Bd2 {[%clk 0:01:55]}  Nf6 {[%clk 0:01:57]} 11. O-O-O {[%clk 0:01:50]}  O-O {[%clk 0:01:54]} 12. h3 {[%clk 0:01:41]}  Bxc3 {[%clk 0:01:52]} 13. Bxc3 {[%clk 0:01:41]}  Nxe4 {[%clk 0:01:52]} 14. Rxd8 {[%clk 0:01:35]}  Rxd8 {[%clk 0:01:51]} 15. Be1 {[%clk 0:01:34]}  Bd5 {[%clk 0:01:16]} 16. Nd2 {[%clk 0:01:19]}  Nxd2 {[%clk 0:00:49]} 17. Bxd5 {[%clk 0:01:18]}  Rxd5 {[%clk 0:00:49]} 18. Bxd2 {[%clk 0:01:18]}  Nd4 {[%clk 0:00:43]} 19. Be3 {[%clk 0:01:17]}  Ne6 {[%clk 0:00:41]} 20. Rd1 {[%clk 0:01:15]}  Rxd1+ {[%clk 0:00:40]} 21. Kxd1 {[%clk 0:01:16]}  a6 {[%clk 0:00:38]} 22. Ke2 {[%clk 0:01:12]}  f5 {[%clk 0:00:37]} 23. Kd3 {[%clk 0:01:06]}  Kf7 {[%clk 0:00:35]} 24. b4 {[%clk 0:01:01]}  b5 {[%clk 0:00:33]} 25. f4 {[%clk 0:01:00]}  Ke7 {[%clk 0:00:28]} 26. c4 {[%clk 0:01:01]}  c6 {[%clk 0:00:27]} 27. Kc3 {[%clk 0:00:52]}  h6 {[%clk 0:00:22]} 28. Kb3 {[%clk 0:00:51]}  g5 {[%clk 0:00:19]} 29. a4 {[%clk 0:00:51]}  gxf4 {[%clk 0:00:12]} 30. gxf4 {[%clk 0:00:50]}  Kf6 {[%clk 0:00:12]} 31. axb5 {[%clk 0:00:24]}  axb5 {[%clk 0:00:12]} 32. cxb5 {[%clk 0:00:25]}  cxb5 {[%clk 0:00:11]} 33. Kc3 {[%clk 0:00:26]}  Kg6 {[%clk 0:00:12]} 34. Bf2 {[%clk 0:00:17]}  Nxf4 {[%clk 0:00:11]} 35. Kd4 {[%clk 0:00:14]}  Nxh3 {[%clk 0:00:10]} 36. Be1 {[%clk 0:00:13]}  f4 {[%clk 0:00:09]} 37. Kc5 {[%clk 0:00:14]}  f3 {[%clk 0:00:09]} 38. Kxb5 {[%clk 0:00:14]}  f2 {[%clk 0:00:09]} 39. Bxf2 {[%clk 0:00:14]}  Nxf2 {[%clk 0:00:10]} 40. Kc6 {[%clk 0:00:12]}  h5 {[%clk 0:00:04]} 41. b5 {[%clk 0:00:12]}  h4 {[%clk 0:00:05]} 42. b6 {[%clk 0:00:13]}  h3 {[%clk 0:00:05]} 43. b7 {[%clk 0:00:14]}  h2 {[%clk 0:00:05]} 44. b8=Q {[%clk 0:00:15]}  h1=Q+ {[%clk 0:00:06]} 45. Kc7 {[%clk 0:00:11]}  Qc1+ {[%clk 0:00:06]} 46. Kb7 {[%clk 0:00:11]}  Qb2+ {[%clk 0:00:05]} 47. Ka8 {[%clk 0:00:11]}  Qa3+ {[%clk 0:00:05]} 48. Qa7 {[%clk 0:00:11]}  Qf8+ {[%clk 0:00:05]} 49. Qb8 {[%clk 0:00:11]}  Qf3+ {[%clk 0:00:05]} 50. Qb7 {[%clk 0:00:11]}  Ne4 {[%clk 0:00:06]} 51. Qc6+ {[%clk 0:00:10]}  Kf5 {[%clk 0:00:06]} 52. Qd5+ {[%clk 0:00:10]}  Kg4 {[%clk 0:00:04]} 53. Kb8 {[%clk 0:00:07]}  Qf4+ {[%clk 0:00:04]} 54. Ka8 {[%clk 0:00:07]}  Kg3 {[%clk 0:00:03]} 55. Qd3+ {[%clk 0:00:04]}  Kf2 {[%clk 0:00:03]} 56. Qc2+ {[%clk 0:00:04]}  Nd2 {[%clk 0:00:03]} 57. Qc5+ {[%clk 0:00:04]}  Ke2 {[%clk 0:00:04]} 58. Qb5+ {[%clk 0:00:04]}  Kd1 {[%clk 0:00:03]} 59. Qa5 {[%clk 0:00:03]}  Qe4+ {[%clk 0:00:04]} 60. Ka7 {[%clk 0:00:03]}  Kc2 {[%clk 0:00:04]} 61. Ka6 {[%clk 0:00:04]}  Nc4 {[%clk 0:00:04]} 62. Qa2+ {[%clk 0:00:04]}  Kc3 {[%clk 0:00:04]} 63. Qa1+ {[%clk 0:00:03]}  Nb2 {[%clk 0:00:04]} 64. Qa3+ {[%clk 0:00:03]}  Kc2 {[%clk 0:00:05]} 65. Qc5+ {[%clk 0:00:03]}  Nc4 {[%clk 0:00:05]} 66. Kb5 {[%clk 0:00:01]}  Kd3 {[%clk 0:00:05]} 0-1


[Site "https://www.chess.com"]

[Event "Titled Tuesday Blitz December 06 Late 2022"]
[White "Danielyan, Vahe"]
[Black "Nasuta, Grzegorz"]
[WhiteFideId "13304828"]
[BlackFideId "1141686"]
[WhiteElo "2423"]
[BlackElo "2441"]
[Result "0-1"]
[Round "08"]
[TimeControl "180+1"]
[Date "2022.12.06"]
[WhiteClock "0:02:27"]
[BlackClock "0:00:38"]

1. Nf3 {[%clk 0:02:58]}  d5 {[%clk 0:02:58]} 2. c4 {[%clk 0:02:59]}  c6 {[%clk 0:02:55]} 3. e3 {[%clk 0:02:59]}  Nf6 {[%clk 0:02:55]} 4. b3 {[%clk 0:02:59]}  Bf5 {[%clk 0:02:54]} 5. Bb2 {[%clk 0:02:59]}  h6 {[%clk 0:02:53]} 6. Be2 {[%clk 0:03:00]}  e6 {[%clk 0:02:53]} 7. O-O {[%clk 0:02:59]}  Be7 {[%clk 0:02:53]} 8. d4 {[%clk 0:03:00]}  O-O {[%clk 0:02:53]} 9. Nbd2 {[%clk 0:03:00]}  Nbd7 {[%clk 0:02:54]} 10. a3 {[%clk 0:03:00]}  a5 {[%clk 0:02:54]} 11. h3 {[%clk 0:02:59]}  Bh7 {[%clk 0:02:53]} 12. Re1 {[%clk 0:02:56]}  Qb8 {[%clk 0:02:53]} 13. Bc3 {[%clk 0:02:53]}  b5 {[%clk 0:02:52]} 14. c5 {[%clk 0:02:53]}  Ne4 {[%clk 0:02:43]} 15. Nxe4 {[%clk 0:02:52]}  Bxe4 {[%clk 0:02:43]} 16. Nd2 {[%clk 0:02:53]}  Bg6 {[%clk 0:02:43]} 17. f4 {[%clk 0:02:50]}  Nf6 {[%clk 0:02:23]} 18. g4 {[%clk 0:02:49]}  Ne4 {[%clk 0:02:23]} 19. Nxe4 {[%clk 0:02:50]}  Bxe4 {[%clk 0:02:24]} 20. Bd3 {[%clk 0:02:50]}  f5 {[%clk 0:02:12]} 21. Bxe4 {[%clk 0:02:50]}  fxe4 {[%clk 0:02:12]} 22. b4 {[%clk 0:02:48]}  g5 {[%clk 0:02:07]} 23. Bd2 {[%clk 0:02:43]}  gxf4 {[%clk 0:01:39]} 24. exf4 {[%clk 0:02:44]}  Bg5 {[%clk 0:01:39]} 25. Rf1 {[%clk 0:02:41]}  Bxf4 {[%clk 0:01:39]} 26. bxa5 {[%clk 0:02:37]}  Bxd2 {[%clk 0:01:19]} 27. Qxd2 {[%clk 0:02:37]}  Qg3+ {[%clk 0:01:18]} 28. Qg2 {[%clk 0:02:35]}  Qxg2+ {[%clk 0:01:08]} 29. Kxg2 {[%clk 0:02:35]}  Rxa5 {[%clk 0:01:09]} 30. Rxf8+ {[%clk 0:02:24]}  Kxf8 {[%clk 0:01:10]} 31. Kg3 {[%clk 0:02:24]}  Ra4 {[%clk 0:00:57]} 32. h4 {[%clk 0:02:24]}  Rxd4 {[%clk 0:00:56]} 33. Kf4 {[%clk 0:02:24]}  Ke7 {[%clk 0:00:42]} 34. g5 {[%clk 0:02:24]}  hxg5+ {[%clk 0:00:40]} 35. Kxg5 {[%clk 0:02:25]}  Rd2 {[%clk 0:00:39]} 36. h5 {[%clk 0:02:26]}  Rg2+ {[%clk 0:00:38]} 37. Kf4 {[%clk 0:02:26]}  Kf6 {[%clk 0:00:38]} 38. h6 {[%clk 0:02:25]}  e5+ {[%clk 0:00:38]} 39. Ke3 {[%clk 0:02:25]}  Rg3+ {[%clk 0:00:38]} 40. Kf2 {[%clk 0:02:25]}  Rh3 {[%clk 0:00:38]} 41. a4 {[%clk 0:02:24]}  bxa4 {[%clk 0:00:38]} 42. Rxa4 {[%clk 0:02:25]}  Rxh6 {[%clk 0:00:38]} 43. Ra6 {[%clk 0:02:26]}  Kf5 {[%clk 0:00:39]} 44. Rxc6 {[%clk 0:02:27]}  Rxc6 {[%clk 0:00:38]} 0-1


[Site "https://www.chess.com"]